[Event "XIV American Continental-ch 2019"]
[Site "Sao Paulo"]
[Date "2019.07.09"]
[Round "7.9"]
[White "Fier, Alexandr"]
[Black "Almiron, Antonio"]
[Result "1-0"]
[ECO "A11"]
[WhiteElo "2547"]
[BlackElo "2402"]
[Annotator "ChessBase"]
[PlyCount "93"]
[EventDate "2019.07.05"]
[EventType "swiss"]
[EventCountry "BRA"]
[SourceTitle "playchess.com"]
[Source "ChessBase"]
[SourceQuality "1"]
[TimeControl "40/5400+30:1800+30"]

1. c4 {[%emt 0:00:00]} c6 {[%emt 0:00:00]} 2. Nf3 {[%emt 0:00:00]} d5 {[%emt 0:00:00]} 3. e3 {[%emt 0:00:00]} Nf6 {[%emt 0:00:01]} 4. Nc3 {[%emt 0:00:00]} e6 {[%emt 0:00:06]} 5. b3 {[%emt 0:00:00]} Bd6 {[%emt 0:00:06]} 6. Bb2 {[%emt 0:00:00]} O-O {[%emt 0:00:09]} 7. Be2 {[%emt 0:00:00]} Re8 {[%emt 0:11:28]} 8. d4 {[%emt 0:03:06]} Nbd7 {[%emt 0:00:07]} 9. O-O {[%emt 0:00:09]} b6 {[%emt 0:00:08]} 10. Qc2 {[%emt 0:01:26]} Bb7 {[%emt 0:00:07]} 11. Rad1 {[%emt 0:00:06]} Qe7 {[%emt 0:01:22]} 12. Rfe1 {[%emt 0:00:05]} Rac8 {[%emt 0:00:09]} 13. e4 {[%emt 0:04:17]} dxe4 {[%emt 0:00:22]} 14. Nxe4 {[%emt 0:00:05]} Nxe4 {[%emt 0:00:08]} 15. Qxe4 {[%emt 0:00:05]} Bb4 {[%emt 0:11:14]} 16. Rf1 {[%emt 0:00:05]} Ba3 {[%emt 0:10:22]} 17. Ba1 {[%emt 0:02:53]} Nf6 {[%emt 0:02:22]} 18. Qe3 {[%emt 0:07:46]} c5 {[%emt 0:00:23]} 19. Ne5 {[%emt 0:00:11]} Red8 {[%emt 0:07:26]} 20. Nd3 {[%emt 0:10:39]} cxd4 {[%emt 0:04:31]} 21. Bxd4 {[%emt 0:00:43]} Bd6 {[%emt 0:00:25]} 22. Ne5 {[%emt 0:06:03]} Nd7 {[%emt 0:02:24]} 23. h3 {[%emt 0:09:37]} Nxe5 {[%emt 0:04:27]} 24. Bxe5 {[%emt 0:00:04]} Bxe5 {[%emt 0:00:05]} 25. Qxe5 {[%emt 0:00:05]} Qc5 {[%emt 0:00:02]} 26. Qf4 {[%emt 0:01:39]} h6 {[%emt 0:00:38]} 27. Rfe1 {[%emt 0:10:17]} Qg5 {[%emt 0:02:05]} 28. Qxg5 {[%emt 0:00:16]} hxg5 {[%emt 0:00:01]} 29. f3 {[%emt 0:00:08]} Kf8 {[%emt 0:00:34]} 30. Kf2 {[%emt 0:00:03]} Ke7 {[%emt 0:05:21]} 31. Ke3 {[%emt 0:00:03]} f5 {[%emt 0:00:19]} 32. Rxd8 {[%emt 0:01:19]} Rxd8 {[%emt 0:00:07]} 33. Bd3 {[%emt 0:00:03]} Kf6 {[%emt 0:00:38]} 34. Rc1 {[%emt 0:00:21]} Rd7 {[%emt 0:04:05]} 35. b4 {[%emt 0:00:14]} Ke5 {[%emt 0:03:04]} 36. a4 {[%emt 0:00:23]} Bc6 {[%emt 0:01:16]} 37. a5 {[%emt 0:00:25]} bxa5 {[%emt 0:00:21]} 38. b5 {[%emt 0:00:08]} Bb7 {[%emt 0:00:44]} 39. Ra1 {[%emt 0:06:07]} f4+ {[%emt 0:01:38]} 40. Kd2 {[%emt 0:00:57]} Kd4 {[%emt 0:00:04]} 41. Rxa5 {[%emt 0:30:05]} Bc8 {[%emt 0:30:54]} 42. Ra1 {[%emt 0:00:42]} e5 {[%emt 0:04:43]} 43. c5 {[%emt 0:00:51]} Re7 {[%emt 0:12:56]} 44. Be4 {[%emt 0:03:49]} Kc4 {[%emt 0:03:43]} 45. b6 {[%emt 0:00:41]} axb6 {[%emt 0:00:04]} 46. cxb6 {[%emt 0:00:07]} Kb5 {[%emt 0:00:03]} 47. Ra7 {[%emt 0:00:45]} 1-0

[Event "XIV American Continental-ch 2019"]
[Site "Sao Paulo"]
[Date "2019.07.10"]
[Round "7.10"]
[White "Sarkar, Justin"]
[Black "Mekhitarian, Krikor Sevag"]
[Result "0-1"]
[ECO "E53"]
[WhiteElo "2389"]
[BlackElo "2545"]
[Annotator "ChessBase"]
[PlyCount "68"]
[EventDate "2019.07.05"]
[EventType "swiss"]
[EventCountry "BRA"]
[SourceTitle "playchess.com"]
[Source "ChessBase"]
[SourceQuality "1"]
[TimeControl "40/5400+30:1800+30"]

1. d4 {[%emt 0:10:06]} Nf6 {[%emt 0:00:00]} 2. c4 {[%emt 0:00:24]} e6 {[%emt 0:00:00]} 3. Nc3 {[%emt 0:00:12]} Bb4 {[%emt 0:00:00]} 4. e3 {[%emt 0:02:20]} O-O {[%emt 0:00:00]} 5. Bd3 {[%emt 0:00:10]} d5 {[%emt 0:00:29]} 6. Nf3 {[%emt 0:01:10]} c5 {[%emt 0:01:36]} 7. cxd5 {[%emt 0:02:21]} exd5 {[%emt 0:01:58]} 8. dxc5 {[%emt 0:00:29]} Nbd7 {[%emt 0:01:41]} 9. Bd2 {[%emt 0:02:43]} Nxc5 {[%emt 0:01:48]} 10. Be2 {[%emt 0:00:18]} Ne6 {[%emt 0:08:04]} 11. a3 {[%emt 0:04:40]} Be7 {[%emt 0:01:02]} 12. O-O {[%emt 0:02:52]} a6 {[%emt 0:01:36]} 13. Rc1 {[%emt 0:02:16]} b5 {[%emt 0:04:14]} 14. Na2 {[%emt 0:08:09]} Bb7 {[%emt 0:11:34]} 15. Bb4 {[%emt 0:00:23]} Ne4 {[%emt 0:09:58]} 16. Nd4 {[%emt 0:20:43]} Nxd4 {[%emt 0:05:02]} 17. exd4 {[%emt 0:00:19]} Re8 {[%emt 0:00:58]} 18. Bxe7 {[%emt 0:00:27]} Qxe7 {[%emt 0:00:18]} 19. Bg4 {[%emt 0:01:39]} Qg5 {[%emt 0:16:39]} 20. Nb4 {[%emt 0:05:36]} g6 {[%emt 0:01:09]} 21. Nd3 {[%emt 0:09:00]} Re7 {[%emt 0:12:58]} 22. f3 {[%emt 0:10:17]} Nf6 {[%emt 0:08:04]} 23. Nc5 {[%emt 0:03:22]} Rae8 {[%emt 0:04:50]} 24. Rc2 {[%emt 0:04:06]} Nxg4 {[%emt 0:03:49]} 25. fxg4 {[%emt 0:00:08]} Bc8 {[%emt 0:00:02]} 26. h3 {[%emt 0:01:09]} f5 {[%emt 0:00:06]} 27. gxf5 {[%emt 0:03:03]} Bxf5 {[%emt 0:00:01]} 28. Qc1 {[%emt 0:04:26]} Qh4 {[%emt 0:01:21]} 29. Rd2 {[%emt 0:00:43]} Re1 {[%emt 0:02:58]} 30. Rd1 {[%emt 0:00:01]} Rxf1+ {[%emt 0:01:26]} 31. Kxf1 {[%emt 0:00:08]} Bxh3 {[%emt 0:00:08]} 32. Qd2 {[%emt 0:01:24]} Qg3 {[%emt 0:00:55]} 33. Kg1 {[%emt 0:00:23]} Bg4 {[%emt 0:00:27]} 34. Qd3 {[%emt 0:01:02]} Re3 {[%emt 0:00:13]} 0-1

[Event "XIV American Continental-ch 2019"]
[Site "Sao Paulo"]
[Date "2019.07.10"]
[Round "7.11"]
[White "Proudian, Armen"]
[Black "Barbosa, Evandro Amorim"]
[Result "1/2-1/2"]
[ECO "B48"]
[WhiteElo "2429"]
[BlackElo "2506"]
[Annotator "RC"]
[PlyCount "90"]
[EventDate "2019.07.05"]
[EventType "swiss"]
[EventCountry "BRA"]
[SourceTitle "playchess.com"]
[Source "ChessBase"]
[SourceQuality "1"]
[TimeControl "40/5400+30:1800+30"]

1. e4 {[%emt 0:00:00]} c5 {[%emt 0:00:00]} 2. Nf3 {[%emt 0:00:15]} e6 {[%emt 0:00:00]} 3. d4 {[%emt 0:00:20]} cxd4 {[%emt 0:00:00]} 4. Nxd4 {[%emt 0:00:06]} Nc6 {[%emt 0:00:09]} 5. Nc3 {[%emt 0:00:35]} Qc7 {[%emt 0:01:16]} 6. Be3 {[%emt 0:00:45]} a6 {[%emt 0:00:28]} 7. Qd2 {[%emt 0:01:07]} Nf6 {[%emt 0:00:25]} 8. O-O-O {[%emt 0:00:29]} Bb4 {[%emt 0:00:36]} 9. f3 {[%emt 0:00:32]} O-O {[%emt 0:02:04]} 10. g4 {[%emt 0:02:34]} Ne5 {[%emt 0:02:37]} 11. g5 {[%emt 0:05:45]} Nh5 {[%emt 0:03:55]} 12. Kb1 {[%emt 0:07:39]} Bxc3 {[%emt 0:05:54]} 13. Qxc3 {[%emt 0:01:01]} Qxc3 {[%emt 0:00:08]} 14. bxc3 {[%emt 0:00:04]} d5 {[%emt 0:00:12]} 15. Be2 {[%emt 0:06:28]} Ng6 {[%emt 0:01:10]} 16. Rhe1 {[%emt 0:04:27]} Nhf4 {[%emt 0:34:29]} 17. Bf1 {[%emt 0:01:20]} dxe4 {[%emt 0:01:45]} 18. fxe4 {[%emt 0:00:59]} Bd7 {[%emt 0:02:03]} 19. Nf5 {[%emt 0:04:17]} Bc6 {[%emt 0:11:31]} 20. Ne7+ {[%emt 0:02:45]} Nxe7 {[%emt 0:00:25]} 21. Bxf4 {[%emt 0:00:06]} Rfd8 {[%emt 0:01:18]} 22. Rd4 {[%emt 0:03:14]} Ng6 {[%emt 0:02:44]} 23. Bc7 Rd7 {[%emt 0:01:25]} 24. Rxd7 {[%emt 0:03:54]} Bxd7 {[%emt 0:00:07]} 25. Rd1 {[%emt 0:02:51]} Bc6 {[%emt 0:00:17]} 26. e5 {[%emt 0:00:53]} Rc8 {[%emt 0:00:34]} 27. Bd6 {[%emt 0:00:32]} Nh4 {[%emt 0:05:07]} 28. Rd2 {[%emt 0:05:18]} Nf3 {[%emt 0:00:47]} 29. Rg2 {[%emt 0:00:28]} Bd5 {[%emt 0:01:55]} 30. Kb2 {[%emt 0:02:36]} Rc6 31. a3 {[%emt 0:05:24]} Rb6+ {[%emt 0:03:31]} 32. Ka1 {[%emt 0:00:41]} Rc6 {[%emt 0:00:46]} 33. Kb2 {[%emt 0:00:10]} Rc8 {[%emt 0:02:27]} 34. h3 {[%emt 0:02:22]} Rc6 35. a4 {[%emt 0:05:51]} Rc8 {[%emt 0:04:32]} 36. a5 {[%emt 0:13:12]} Kh8 {[%emt 0:03:53]} 37. Rg4 {[%emt 0:01:45]} Nd2 {[%emt 0:02:05]} 38. Rf4 {[%emt 0:01:49]} Kg8 {[%emt 0:01:14]} 39. Bd3 {[%emt 0:01:13]} Nc4+ {[%emt 0:03:32]} 40. Bxc4 {[%emt 0:00:21]} Rxc4 {[%emt 0:01:54]} 41. Rxc4 Bxc4 {[%emt 0:30:11]} 42. h4 {[%emt 0:31:57]} Bd5 {[%emt 0:00:19]} 43. Ka3 {[%emt 0:01:16]} Be4 {[%emt 0:00:09]} 44. Kb3 {[%emt 0:00:54]} h6 {[%emt 0:00:38]} 45. gxh6 {[%emt 0:00:30]} gxh6 1/2-1/2

[Event "XIV American Continental-ch 2019"]
[Site "Sao Paulo"]
[Date "2019.07.09"]
[Round "7.12"]
[White "Santos, Marcus Vinicius More"]
[Black "Vazquez, Guillermo"]
[Result "1/2-1/2"]
[ECO "E46"]
[WhiteElo "2354"]
[BlackElo "2483"]
[Annotator "ChessBase"]
[PlyCount "89"]
[EventDate "2019.07.05"]
[EventType "swiss"]
[EventCountry "BRA"]
[SourceTitle "playchess.com"]
[Source "ChessBase"]
[SourceQuality "1"]
[TimeControl "40/5400+30:1800+30"]

1. d4 {[%emt 0:02:53]} Nf6 {[%emt 0:00:00]} 2. c4 {[%emt 0:01:08]} e6 {[%emt 0:00:07]} 3. Nc3 {[%emt 0:00:16]} Bb4 {[%emt 0:00:29]} 4. e3 {[%emt 0:00:21]} O-O {[%emt 0:00:50]} 5. Nge2 {[%emt 0:00:23]} c6 {[%emt 0:00:43]} 6. a3 {[%emt 0:01:03]} Ba5 {[%emt 0:00:44]} 7. Qc2 {[%emt 0:00:18]} d5 {[%emt 0:00:28]} 8. Ng3 {[%emt 0:00:43]} Nbd7 {[%emt 0:01:49]} 9. Be2 {[%emt 0:00:38]} dxc4 {[%emt 0:02:52]} 10. Bxc4 {[%emt 0:00:33]} e5 {[%emt 0:00:18]} 11. O-O {[%emt 0:01:07]} exd4 {[%emt 0:05:54]} 12. exd4 {[%emt 0:00:10]} Bc7 {[%emt 0:00:18]} 13. Ba2 {[%emt 0:00:26]} Nb6 {[%emt 0:02:18]} 14. Re1 {[%emt 0:00:19]} Be6 {[%emt 0:03:29]} 15. Bb1 {[%emt 0:11:42]} Re8 {[%emt 0:04:15]} 16. Be3 {[%emt 0:03:03]} Nbd5 {[%emt 0:06:12]} 17. Bd2 {[%emt 0:04:28]} Qd6 {[%emt 0:06:06]} 18. Re5 {[%emt 0:12:59]} g6 {[%emt 0:07:28]} 19. Bg5 {[%emt 0:20:04]} Bd7 {[%emt 0:02:35]} 20. Rxe8+ {[%emt 0:11:22]} Rxe8 {[%emt 0:00:06]} 21. Ba2 {[%emt 0:01:55]} b5 {[%emt 0:10:12]} 22. Bxd5 {[%emt 0:03:04]} Nxd5 {[%emt 0:00:27]} 23. Nce4 {[%emt 0:02:01]} Qf8 {[%emt 0:02:01]} 24. Nc5 {[%emt 0:02:12]} Bxg3 {[%emt 0:06:50]} 25. hxg3 {[%emt 0:01:06]} Bf5 {[%emt 0:00:11]} 26. Qd2 {[%emt 0:01:09]} f6 {[%emt 0:00:24]} 27. Bh6 {[%emt 0:02:17]} Qe7 {[%emt 0:00:22]} 28. Be3 {[%emt 0:03:37]} Kf7 {[%emt 0:08:50]} 29. Re1 {[%emt 0:00:44]} Qd6 {[%emt 0:00:20]} 30. Nb7 {[%emt 0:02:36]} Qc7 {[%emt 0:00:29]} 31. Nc5 {[%emt 0:00:12]} h5 {[%emt 0:04:13]} 32. Qc1 {[%emt 0:01:57]} g5 {[%emt 0:00:35]} 33. Bd2 {[%emt 0:00:32]} Rg8 {[%emt 0:00:36]} 34. Na6 {[%emt 0:01:16]} Qc8 {[%emt 0:03:27]} 35. Nb4 {[%emt 0:01:17]} Nxb4 {[%emt 0:00:40]} 36. Bxb4 {[%emt 0:00:08]} Re8 {[%emt 0:00:05]} 37. Rxe8 {[%emt 0:00:32]} Qxe8 {[%emt 0:00:04]} 38. Qc5 {[%emt 0:00:37]} Kg6 {[%emt 0:01:32]} 39. Qxa7 {[%emt 0:01:43]} Be4 {[%emt 0:00:36]} 40. Be7 {[%emt 0:02:51]} Bd5 {[%emt 0:00:38]} 41. Qc7 {[%emt 0:30:28]} Kf7 {[%emt 0:32:30]} 42. Bd8+ {[%emt 0:02:49]} Kg6 {[%emt 0:00:25]} 43. Be7 {[%emt 0:00:12]} Kf7 {[%emt 0:00:08]} 44. Bb4+ {[%emt 0:01:54]} Kg6 {[%emt 0:00:08]} 45. Be7 1/2-1/2

[Event "XIV American Continental-ch 2019"]
[Site "Sao Paulo"]
[Date "2019.07.09"]
[Round "7.13"]
[White "Leitao, Rafael"]
[Black "Do Valle Cardoso, Lucas"]
[Result "1-0"]
[ECO "D25"]
[WhiteElo "2616"]
[BlackElo "2132"]
[Annotator "RC"]
[PlyCount "69"]
[EventDate "2019.07.05"]
[EventType "swiss"]
[EventCountry "BRA"]
[SourceTitle "playchess.com"]
[Source "ChessBase"]
[SourceQuality "1"]
[TimeControl "40/5400+30:1800+30"]

1. d4 {[%emt 0:07:52]} d5 {[%emt 0:01:23]} 2. c4 {[%emt 0:00:29]} dxc4 {[%emt 0:00:07]} 3. Nf3 {[%emt 0:01:44]} Nf6 {[%emt 0:00:13]} 4. e3 {[%emt 0:00:06]} b5 {[%emt 0:00:10]} 5. a4 {[%emt 0:00:47]} b4 {[%emt 0:00:05]} 6. Bxc4 {[%emt 0:00:15]} e6 {[%emt 0:00:06]} 7. O-O {[%emt 0:01:20]} Be7 {[%emt 0:01:05]} 8. Qe2 {[%emt 0:08:03]} O-O {[%emt 0:03:27]} 9. Rd1 {[%emt 0:02:54]} Bb7 {[%emt 0:01:24]} 10. a5 {[%emt 0:04:07]} Nbd7 {[%emt 0:05:40]} 11. a6 {[%emt 0:00:58]} Bd5 {[%emt 0:00:10]} 12. Nbd2 {[%emt 0:00:16]} Qb8 {[%emt 0:04:42]} 13. e4 {[%emt 0:00:44]} Bxc4 {[%emt 0:00:07]} 14. Nxc4 {[%emt 0:00:08]} c5 {[%emt 0:00:19]} 15. Bg5 {[%emt 0:21:16]} cxd4 {[%emt 0:02:49]} 16. Nxd4 {[%emt 0:00:53]} Bc5 {[%emt 0:03:54]} 17. Nb3 {[%emt 0:05:56]} Rc8 {[%emt 0:02:58]} 18. Nxc5 {[%emt 0:00:27]} Rxc5 {[%emt 0:00:27]} 19. Be3 {[%emt 0:00:12]} Rc6 {[%emt 0:09:20]} 20. Na5 {[%emt 0:02:08]} Rd6 {[%emt 0:00:07]} 21. f3 {[%emt 0:01:47]} Rxd1+ {[%emt 0:04:05]} 22. Rxd1 {[%emt 0:00:05]} Qe5 {[%emt 0:00:32]} 23. Nc6 {[%emt 0:00:53]} Qh5 {[%emt 0:00:10]} 24. g4 {[%emt 0:01:22]} Qh4 {[%emt 0:00:55]} 25. g5 Nxe4 {[%emt 0:00:24]} 26. fxe4 {[%emt 0:02:33]} Qxe4 {[%emt 0:00:34]} 27. Ne7+ {[%emt 0:00:35]} Kf8 {[%emt 0:00:04]} 28. Rxd7 {[%emt 0:00:21]} Ke8 {[%emt 0:00:04]} 29. Rd4 {[%emt 0:00:55]} Qb1+ {[%emt 0:00:14]} 30. Rd1 {[%emt 0:00:06]} Qe4 {[%emt 0:00:04]} 31. Qb5+ {[%emt 0:00:06]} Kf8 {[%emt 0:00:17]} 32. Qe2 {[%emt 0:04:03]} Ke8 {[%emt 0:01:22]} 33. Rd4 {[%emt 0:04:20]} Qb1+ {[%emt 0:00:07]} 34. Qd1 {[%emt 0:00:15]} Qxd1+ {[%emt 0:00:45]} 35. Rxd1 {[%emt 0:00:07]} 1-0

[Event "XIV American Continental-ch 2019"]
[Site "Sao Paulo"]
[Date "2019.07.09"]
[Round "7.14"]
[White "Mecking, Henrique"]
[Black "De Borba, Guilherme"]
[Result "1-0"]
[ECO "E15"]
[WhiteElo "2576"]
[BlackElo "2330"]
[Annotator "ChessBase"]
[PlyCount "91"]
[EventDate "2019.07.05"]
[EventType "swiss"]
[EventCountry "BRA"]
[SourceTitle "playchess.com"]
[Source "ChessBase"]
[SourceQuality "1"]
[TimeControl "40/5400+30:1800+30"]

1. d4 {[%emt 0:00:00]} Nf6 {[%emt 0:00:00]} 2. c4 {[%emt 0:00:00]} e6 {[%emt 0:00:12]} 3. Nf3 {[%emt 0:00:38]} b6 {[%emt 0:00:08]} 4. g3 {[%emt 0:00:06]} Ba6 {[%emt 0:00:10]} 5. b3 {[%emt 0:00:16]} Bb4+ {[%emt 0:00:12]} 6. Bd2 {[%emt 0:00:02]} Bxd2+ {[%emt 0:00:43]} 7. Nbxd2 {[%emt 0:09:54]} c5 {[%emt 0:00:22]} 8. e4 {[%emt 0:03:08]} cxd4 {[%emt 0:11:17]} 9. e5 {[%emt 0:14:56]} Ng4 {[%emt 0:00:45]} 10. h3 {[%emt 0:00:09]} Nh6 {[%emt 0:00:09]} 11. Nxd4 {[%emt 0:04:52]} Bb7 {[%emt 0:02:57]} 12. N2f3 {[%emt 0:13:17]} f6 {[%emt 0:04:39]} 13. exf6 {[%emt 0:09:37]} Qxf6 {[%emt 0:01:10]} 14. Bg2 {[%emt 0:00:05]} O-O {[%emt 0:01:16]} 15. O-O {[%emt 0:00:13]} Na6 {[%emt 0:02:39]} 16. Qe2 {[%emt 0:03:41]} Nc5 {[%emt 0:06:57]} 17. Rad1 {[%emt 0:03:43]} a5 {[%emt 0:18:42]} 18. Ne5 {[%emt 0:02:16]} Bxg2 {[%emt 0:00:15]} 19. Kxg2 {[%emt 0:00:02]} Nf7 {[%emt 0:02:15]} 20. Nxf7 {[%emt 0:01:47]} Rxf7 {[%emt 0:04:35]} 21. Qf3 {[%emt 0:11:22]} Raf8 {[%emt 0:04:36]} 22. Qxf6 {[%emt 0:01:19]} Rxf6 {[%emt 0:02:19]} 23. f4 {[%emt 0:03:22]} g5 {[%emt 0:01:10]} 24. fxg5 {[%emt 0:04:55]} Rxf1 {[%emt 0:00:34]} 25. Rxf1 {[%emt 0:00:01]} Rxf1 {[%emt 0:00:11]} 26. Kxf1 {[%emt 0:00:01]} Ne4 {[%emt 0:00:09]} 27. h4 {[%emt 0:08:00]} Nxg3+ {[%emt 0:00:14]} 28. Kf2 {[%emt 0:00:08]} Ne4+ {[%emt 0:04:14]} 29. Ke3 {[%emt 0:00:19]} Nc5 {[%emt 0:05:17]} 30. Nb5 {[%emt 0:02:18]} Kg7 {[%emt 0:04:07]} 31. h5 {[%emt 0:00:07]} e5 {[%emt 0:01:49]} 32. Nc7 {[%emt 0:01:01]} d6 {[%emt 0:03:40]} 33. Ne8+ {[%emt 0:00:59]} Kf8 {[%emt 0:01:04]} 34. Nxd6 {[%emt 0:00:03]} a4 {[%emt 0:00:10]} 35. bxa4 {[%emt 0:01:44]} Nxa4 {[%emt 0:00:08]} 36. Ke4 {[%emt 0:00:08]} Nc3+ {[%emt 0:00:29]} 37. Kxe5 {[%emt 0:00:05]} Nxa2 {[%emt 0:00:09]} 38. Nc8 {[%emt 0:00:04]} Nb4 {[%emt 0:00:28]} 39. Nxb6 {[%emt 0:00:07]} Nd3+ {[%emt 0:00:05]} 40. Kf5 {[%emt 0:02:38]} Nc5 {[%emt 0:00:11]} 41. Nd5 {[%emt 0:30:09]} Kf7 {[%emt 0:30:10]} 42. Nf4 {[%emt 0:00:26]} Ke7 {[%emt 0:00:32]} 43. g6 {[%emt 0:02:07]} hxg6+ {[%emt 0:00:10]} 44. Kxg6 {[%emt 0:00:59]} Kd6 {[%emt 0:00:45]} 45. h6 {[%emt 0:00:14]} Nd7 {[%emt 0:00:03]} 46. Kg7 1-0

[Event "XIV American Continental-ch 2019"]
[Site "Sao Paulo"]
[Date "2019.07.09"]
[Round "7.15"]
[White "Lima, Darcy"]
[Black "Rangel, Daniel"]
[Result "1-0"]
[ECO "A00"]
[WhiteElo "2543"]
[BlackElo "2325"]
[Annotator "ChessBase"]
[PlyCount "69"]
[EventDate "2019.07.05"]
[EventType "swiss"]
[EventCountry "BRA"]
[SourceTitle "playchess.com"]
[Source "ChessBase"]
[SourceQuality "1"]
[TimeControl "40/5400+30:1800+30"]

1. g3 {[%emt 0:00:00]} Nf6 {[%emt 0:00:01]} 2. Bg2 {[%emt 0:00:00]} d5 {[%emt 0:00:07]} 3. f4 {[%emt 0:01:40]} g6 {[%emt 0:00:07]} 4. d3 {[%emt 0:02:37]} Bg7 {[%emt 0:01:00]} 5. Nf3 {[%emt 0:00:38]} O-O {[%emt 0:00:07]} 6. O-O {[%emt 0:00:03]} b6 {[%emt 0:01:23]} 7. Nc3 {[%emt 0:02:13]} Bb7 {[%emt 0:00:41]} 8. e4 {[%emt 0:11:42]} dxe4 {[%emt 0:02:42]} 9. Ng5 {[%emt 0:02:35]} Nbd7 {[%emt 0:02:08]} 10. dxe4 {[%emt 0:03:41]} h6 {[%emt 0:01:47]} 11. Nh3 {[%emt 0:02:28]} Nc5 {[%emt 0:01:18]} 12. Nf2 {[%emt 0:09:16]} e5 {[%emt 0:22:14]} 13. Be3 {[%emt 0:21:03]} Qe7 {[%emt 0:06:17]} 14. f5 {[%emt 0:02:37]} Rad8 {[%emt 0:10:49]} 15. Qe2 {[%emt 0:04:01]} a5 {[%emt 0:19:46]} 16. a3 {[%emt 0:10:25]} Ra8 {[%emt 0:02:58]} 17. Rfe1 {[%emt 0:01:47]} Rfd8 {[%emt 0:04:33]} 18. h4 {[%emt 0:06:18]} gxf5 {[%emt 0:04:07]} 19. exf5 {[%emt 0:00:06]} e4 {[%emt 0:01:08]} 20. Ng4 {[%emt 0:02:36]} Nxg4 {[%emt 0:03:51]} 21. Qxg4 {[%emt 0:00:04]} Kh7 {[%emt 0:01:33]} 22. Rf1 {[%emt 0:02:31]} Qf6 {[%emt 0:04:09]} 23. Qh5 {[%emt 0:04:03]} Qd6 {[%emt 0:02:28]} 24. f6 {[%emt 0:01:54]} Qxg3 {[%emt 0:00:45]} 25. Bf4 {[%emt 0:00:55]} Qg6 {[%emt 0:00:05]} 26. Qxg6+ {[%emt 0:00:04]} Kxg6 {[%emt 0:00:02]} 27. fxg7 {[%emt 0:00:05]} f5 {[%emt 0:02:03]} 28. Bxc7 {[%emt 0:00:49]} Rd7 {[%emt 0:00:57]} 29. Bxb6 {[%emt 0:00:56]} Ne6 {[%emt 0:00:15]} 30. h5+ {[%emt 0:01:57]} Kg5 {[%emt 0:00:30]} 31. Be3+ {[%emt 0:01:18]} f4 {[%emt 0:01:06]} 32. Nxe4+ {[%emt 0:03:04]} Bxe4 {[%emt 0:02:23]} 33. Bxe4 {[%emt 0:00:02]} Rg8 {[%emt 0:00:32]} 34. Bf2 {[%emt 0:00:51]} Nxg7 {[%emt 0:00:51]} 35. Rad1 {[%emt 0:00:34]} 1-0

[Event "XIV American Continental-ch 2019"]
[Site "Sao Paulo"]
[Date "2019.07.09"]
[Round "7.16"]
[White "Di Berardino, Diego Rafael"]
[Black "Coro, Lucas"]
[Result "1-0"]
[ECO "E81"]
[WhiteElo "2506"]
[BlackElo "2312"]
[Annotator "ChessBase"]
[PlyCount "63"]
[EventDate "2019.07.05"]
[EventType "swiss"]
[EventCountry "BRA"]
[SourceTitle "playchess.com"]
[Source "ChessBase"]
[SourceQuality "1"]
[TimeControl "40/5400+30:1800+30"]

1. d4 {[%emt 0:00:00]} Nf6 {[%emt 0:00:00]} 2. c4 {[%emt 0:00:00]} g6 {[%emt 0:00:00]} 3. Nc3 {[%emt 0:00:03]} Bg7 {[%emt 0:00:22]} 4. e4 {[%emt 0:00:05]} d6 {[%emt 0:00:07]} 5. f3 {[%emt 0:00:25]} O-O {[%emt 0:00:20]} 6. Bg5 {[%emt 0:00:06]} c5 {[%emt 0:00:31]} 7. d5 {[%emt 0:00:05]} e6 {[%emt 0:00:06]} 8. Qd2 {[%emt 0:00:07]} Re8 {[%emt 0:01:53]} 9. Nge2 {[%emt 0:00:42]} exd5 {[%emt 0:00:18]} 10. cxd5 {[%emt 0:05:12]} a6 {[%emt 0:01:49]} 11. a4 {[%emt 0:00:04]} Nbd7 {[%emt 0:00:08]} 12. Ng3 {[%emt 0:01:09]} Ne5 {[%emt 0:05:38]} 13. Be2 {[%emt 0:00:09]} Qa5 {[%emt 0:01:52]} 14. O-O {[%emt 0:00:26]} Qb4 {[%emt 0:02:46]} 15. Kh1 {[%emt 0:04:25]} Bd7 {[%emt 0:01:57]} 16. Qf4 {[%emt 0:10:39]} Qxb2 {[%emt 0:03:55]} 17. Rfc1 {[%emt 0:02:07]} Nh5 {[%emt 0:01:21]} 18. Nxh5 {[%emt 0:00:05]} gxh5 {[%emt 0:00:09]} 19. Rab1 {[%emt 0:07:07]} Qa3 {[%emt 0:00:29]} 20. Bf6 {[%emt 0:03:35]} c4 {[%emt 0:06:36]} 21. Qg5 {[%emt 0:08:33]} Ng6 {[%emt 0:00:09]} 22. Bxg7 {[%emt 0:00:13]} Kxg7 {[%emt 0:00:20]} 23. Rxb7 {[%emt 0:01:27]} Re5 {[%emt 0:11:57]} 24. Qd2 {[%emt 0:00:29]} Bxa4 {[%emt 0:00:42]} 25. f4 {[%emt 0:05:30]} Re7 {[%emt 0:05:40]} 26. Rbb1 {[%emt 0:01:42]} Bb3 {[%emt 0:02:59]} 27. f5 {[%emt 0:00:24]} Ne5 {[%emt 0:00:29]} 28. f6+ {[%emt 0:01:06]} Kxf6 {[%emt 0:02:00]} 29. Qh6+ {[%emt 0:00:16]} Ng6 {[%emt 0:00:06]} 30. Rf1+ {[%emt 0:00:23]} Ke5 {[%emt 0:00:10]} 31. Qg7+ {[%emt 0:00:21]} f6 {[%emt 0:00:05]} 32. Qxf6# {Kxd5} 1-0